fUSD/lending_fUSD_20250607
["ID","MTS","AMOUNT","RATE_DAILY","PERIOD"]
[364942412,1749328237938,-500.0,0.0001908,2]
[364942413,1749328237948,-300.0,0.0001908,2]
[364942414,1749328237957,-151.0,0.0001908,2]
[364942415,1749328237967,-668.65185757,0.0001908,2]
[364942416,1749328237978,-500.0,0.0001908,2]
[364942417,1749328237988,-300.0,0.0001908,2]
[364942418,1749328237998,-151.0,0.0001908,2]
[364942419,1749328238008,-500.0,0.0001908,2]
[364942420,1749328238017,-300.0,0.0001908,2]
[364942421,1749328238027,-151.0,0.0001908,2]
[364942422,1749328238037,-500.0,0.0001908,2]
[364942423,1749328238047,-300.0,0.0001908,2]
[364942424,1749328238056,-151.0,0.0001908,2]
[364942425,1749328238066,-500.0,0.0001908,2]
[364942426,1749328238076,-289.31187968,0.0001908,2]
[364942427,1749328238086,-184.62765666,0.0001908,2]
[364942428,1749328238100,-315.37234334,0.0001908,2]
[364942429,1749328238109,-500.0,0.0001908,2]
[364942430,1749328238119,-500.0,0.0001908,2]
[364942431,1749328238128,-397.87158068,0.0001908,2]
[364942432,1749328238138,-151.0,0.0001908,2]
[364942433,1749328238147,-154.0935021,0.0001909,2]
[364942434,1749328238157,-154.0935021,0.00019091,2]
[364942435,1749328238167,-154.0935021,0.00019091,2]
[364942436,1749328238176,-801.0,0.00019092,2]
[364942437,1749328238187,-636.0,0.00019092,2]
[364942438,1749328238197,-557.0,0.00019092,2]
[364942439,1749328238207,-589.0,0.00019092,2]
[364942440,1749328238216,-2000.0,0.00019092,2]
[364942441,1749328238226,-1274.0,0.00019092,2]
[364942442,1749328238235,-926.0,0.00019092,2]
[364942443,1749328238245,-1255.0,0.00019092,2]
[364942444,1749328238255,-164.85952431,0.00019092,2]
[364942448,1749328238572,-994.14047569,0.00019092,2]
[364942449,1749328238583,-155.0,0.00019092,2]
[364942450,1749328238592,-1368.65952431,0.00019092,2]
[364942451,1749328238605,-2713.34047569,0.00019092,2]
[364942452,1749328238614,-2773.94897448,0.00019092,2]
[364942453,1749328238625,-4244.05102552,0.00019092,2]
[364942454,1749328238635,-154.0935021,0.00019092,2]
[364942455,1749328238645,-852.0,0.00019092,2]
[364942456,1749328238655,-154.0935021,0.00019092,2]
[364942457,1749328238665,-154.0935021,0.00019093,2]
[364942458,1749328238675,-3507.4,0.000191,2]
[364942459,1749328238686,-22500.82424102,0.000191,2]
[364942460,1749328238699,-708.6,0.00019141,2]
[364942461,1749328238709,-500.0,0.00019173,2]
[364942462,1749328238718,-500.0,0.00019173,2]
[364942463,1749328238728,-357.27925546,0.00019173,2]
[364942464,1749328238738,-500.0,0.00019173,2]
[364942465,1749328238748,-2000.0,0.00019174,2]
[364942466,1749328238757,-200.0,0.00019174,2]
[364942467,1749328238767,-170.61,0.00019185,2]
[364942468,1749328238776,-170.61,0.00019185,2]
[364942469,1749328238786,-340.94,0.00019185,2]
[364942470,1749328238796,-170.61,0.00019185,2]
[364942471,1749328238805,-170.61,0.00019185,2]
[364942472,1749328238815,-170.61,0.00019185,2]
[364942473,1749328238824,-354.34,0.00019185,2]
[364942474,1749328238834,-661.83,0.00019185,2]
[364942475,1749328238843,-354.34,0.00019185,2]
[364942476,1749328238853,-354.34,0.00019185,2]
[364942477,1749328238862,-152.22,0.00019188,2]
[364942478,1749328238871,-152.22,0.00019188,2]
[364942479,1749328238881,-152.22,0.00019188,2]
[364942480,1749328238891,-152.22,0.00019188,2]
[364942481,1749328238900,-152.22,0.00019188,2]
[364942482,1749328238910,-1191.57,0.00019188,2]
[364942483,1749328238919,-1191.57,0.00019188,2]
[364942484,1749328238930,-4992.30972629,0.00019189,2]
[364942486,1749328241346,205.0,0.00016508,2]
[364942547,1749328246225,-170.61,0.00018578,2]
[364942548,1749328246235,-714.33,0.0001909,2]
[364942551,1749328263652,5800.0,0.00013435,2]
[364942552,1749328286816,5800.0,0.00013427,2]
[364942553,1749328399584,363.74,0.00013699,2]
[364942555,1749328632696,740.39,0.00016199,2]
[364942556,1749328915762,183.04,0.00016712,2]
[364942557,1749328978669,1000.0,0.00016817,2]
[364942560,1749329132850,175.61,0.0001429,2]
[364942561,1749329171649,200.0,0.00016314,2]
[364942562,1749329172887,-169.1160785,0.00017067,3]
[364942563,1749329181628,-30.8839215,0.00017067,3]
[364942564,1749329200484,151.0,0.00016835,2]
[364942565,1749329201784,200.0,0.00016314,2]
[364942639,1749329432124,-229.57295648,0.0001725,2]
[364942640,1749329432134,-150.0,0.00017496,2]
[364942641,1749329432144,-300.0,0.00017508,2]
[364942642,1749329432153,-711.83904088,0.00017508,2]
[364942643,1749329432165,-425.32601811,0.00017508,2]
[364942644,1749329432177,-62.83494101,0.00017508,2]
[364942645,1749329432187,-11219.0202568,0.00017509,2]
[364942657,1749329432527,-2771.01883403,0.00017509,2]
[364942660,1749329432540,-550.14507226,0.00017509,2]
[364942664,1749329432572,-2959.86801477,0.00017509,2]
[364942666,1749329432584,-2685.11782214,0.00017509,2]
[364942668,1749329432594,-150.0,0.00017519,2]
[364942670,1749329432604,-150.0,0.0001755,7]
[364942672,1749329432613,-2254.48,0.00017565,2]
[364942674,1749329432623,-1397.7,0.00017704,2]
[364942676,1749329432633,-3568.38,0.00017748,2]
[364942678,1749329432642,-150.0,0.00017762,2]
[364942680,1749329432654,-200.0,0.0001782,4]
[364942681,1749329432664,-2491.86,0.00017852,2]
[364942683,1749329432674,-162.95,0.00017877,2]
[364942685,1749329432684,-1000.0,0.00017877,2]
[364942687,1749329432694,-3294.14,0.00017922,2]
[364942689,1749329432703,-367.53,0.00017934,2]
[364942691,1749329432713,-150.0,0.00018044,2]
[364942693,1749329432722,-150.0,0.00018052,2]
[364942695,1749329432732,-150.0,0.0001812,2]
[364942697,1749329432741,-1957.856,0.00018141,2]
[364942699,1749329432751,-207.4,0.00018141,2]
[364942701,1749329432760,-200.0,0.00018165,2]
[364942703,1749329432770,-150.0,0.00018167,2]
[364942705,1749329432780,-520.58,0.00018173,2]
[364942707,1749329432789,-157.44,0.00018173,2]
[364942709,1749329432800,-151.0,0.00018176,2]
[364942710,1749329432810,-1000.0,0.00018176,2]
[364942712,1749329432820,-520.63085361,0.00018176,2]
[364942714,1749329432830,-1161.34,0.00018184,2]
[364942716,1749329432839,-1425.03745586,0.00018196,2]
[364942718,1749329432849,-12415.19505811,0.00018219,2]
[364942720,1749329432858,-150.0,0.00018243,2]
[364942722,1749329432868,-150.0,0.00018418,2]
[364942724,1749329432878,-740.39,0.00018463,2]
[364942726,1749329432887,-150.0,0.00018515,2]
[364942728,1749329432896,-2590.0,0.00018533,2]
[364942730,1749329432906,-2142.13917824,0.00018533,2]
[364942732,1749329432918,-416.85355078,0.00018533,2]
[364942735,1749329432930,-1934.89487648,0.00018533,2]
[364943191,1749329438156,-632.46794745,0.00017767,2]
[364943192,1749329438212,-5327.87671133,0.00017767,2]
[364943193,1749329438523,-2590.000001,0.00017767,2]
[364943194,1749329438536,-8982.97534022,0.00017767,2]
[364943195,1749329438546,-1846.1723945,0.00018533,2]
[364943196,1749329438556,-200.0,0.00018574,5]
[364943198,1749329438566,-150.0,0.00018574,2]
[364943200,1749329438575,-150.0,0.00018597,2]
[364943202,1749329438585,-150.0,0.00018639,2]
[364943204,1749329438595,-167.19,0.0001873,2]
[364943206,1749329438604,-150.0,0.00018915,2]
[364943207,1749329438614,-150.0,0.00018931,2]
[364943209,1749329438624,-637.05565667,0.00018941,2]
[364943211,1749329438634,-500.0,0.00018941,2]
[364943212,1749329438644,-500.0,0.00018941,2]
[364943214,1749329438654,-271.7593,0.00018942,2]
[364943215,1749329438664,-1920.4841,0.00018942,2]
[364943216,1749329438673,-2079.873,0.00018942,2]
[364943217,1749329438683,-250.0,0.00018942,2]
[364943218,1749329438694,-711.1444,0.0001895,2]
[364943219,1749329438704,-2185.66804955,0.00018979,2]
[364943220,1749329438714,-2216.0843039,0.00019,2]
[364943234,1749329440191,-253.09871949,0.00019,2]
[364943235,1749329440351,-376.35073405,0.00019,2]
[364943236,1749329440363,-24849.94954905,0.00019,2]
[364943237,1749329440374,-323.61,0.00019,2]
[364943238,1749329440384,-250.0,0.00019,2]
[364943239,1749329440398,-215.005802,0.00019011,2]
[364943240,1749329440408,-150.0,0.00019012,2]
[364943241,1749329440418,-150.0,0.00019017,2]
[364943242,1749329440427,-150.0,0.00019026,2]
[364943243,1749329440439,-944.0,0.00019042,2]
[364943244,1749329440449,-1164.0,0.00019042,2]
[364943245,1749329440460,-636.0,0.00019042,2]
[364943246,1749329440470,-801.0,0.00019042,2]
[364943247,1749329440480,-589.0,0.00019042,2]
[364943248,1749329440490,-926.0,0.00019042,2]
[364943249,1749329440501,-557.0,0.00019042,2]
[364943250,1749329440511,-2000.0,0.00019042,2]
[364943251,1749329440521,-1274.0,0.00019042,2]
[364943252,1749329440532,-1255.0,0.00019042,2]
[364943253,1749329440542,-7018.0,0.00019042,2]
[364943254,1749329440551,-852.0,0.00019042,2]
[364943255,1749329440562,-883.0,0.00019042,2]
[364943256,1749329440572,-4082.0,0.00019042,2]
[364943257,1749329440583,-155.0,0.00019042,2]
[364943258,1749329440592,-150.0,0.00019079,2]
[364943259,1749329440602,-2185.6680495,0.00019081,2]
[364943260,1749329440612,-1195.073,0.00019092,2]
[364943261,1749329440622,-150.0,0.00019099,2]
[364943262,1749329440632,-13407.93408765,0.000191,2]
[364943263,1749329440642,-420.0,0.00019112,2]
[364943264,1749329440657,-154.1290114,0.00019121,2]
[364943265,1749329440667,-1203.14857593,0.0001915,2]
[364943267,1749329440678,-150.0,0.00019162,2]
[364943268,1749329440688,-150.0,0.00019169,2]
[364943269,1749329440698,-350.0,0.0001917,2]
[364943270,1749329440708,-2185.6680495,0.00019184,2]
[364943271,1749329440718,-3965.13637283,0.00019184,2]
[364943272,1749329440731,-17644.14358647,0.00019184,2]
[364943273,1749329440741,-151.0,0.00019185,2]
[364943274,1749329440750,-151.0,0.00019185,2]
[364943275,1749329440760,-221.765055,0.00019185,2]
[364943276,1749329440770,-221.765055,0.00019185,2]
[364943277,1749329440780,-151.0,0.00019185,2]
[364943278,1749329440790,-354.34,0.00019185,2]
[364943279,1749329440800,-355.85,0.00019185,2]
[364943280,1749329440810,-354.34,0.00019185,2]
[364943281,1749329440820,-354.34,0.00019185,2]
[364943282,1749329440830,-354.34,0.00019185,2]
[364943283,1749329440840,-354.34,0.00019185,2]
[364943284,1749329440850,-354.34,0.00019185,2]
[364943285,1749329440859,-354.34,0.00019185,2]
[364943286,1749329440868,-354.34,0.00019185,2]
[364943287,1749329440878,-354.34,0.00019185,2]
[364943288,1749329440888,-354.34,0.00019185,2]
[364943289,1749329440897,-163.25,0.00019185,2]
[364943290,1749329440907,-163.25,0.00019185,2]
[364943291,1749329440917,-163.25,0.00019185,2]
[364943292,1749329440926,-163.25,0.00019185,2]
[364943293,1749329440936,-350.42,0.00019185,2]
[364943294,1749329440946,-163.25,0.00019185,2]
[364943295,1749329440956,-354.34,0.00019185,2]
[364943296,1749329440966,-163.25,0.00019185,2]
[364943297,1749329440976,-354.34,0.00019185,2]
[364943298,1749329440986,-163.25,0.00019185,2]
[364943299,1749329440995,-354.34,0.00019185,2]
[364943300,1749329441005,-163.25,0.00019185,2]
[364943301,1749329441015,-354.34,0.00019185,2]
[364943302,1749329441025,-163.25,0.00019185,2]
[364943303,1749329441034,-357.12,0.00019185,2]
[364943304,1749329441044,-163.25,0.00019185,2]
[364943305,1749329441054,-163.25,0.00019185,2]
[364943306,1749329441064,-200.0,0.00019189,2]
[364943307,1749329441074,-161.34278849,0.0001919,2]
[364943308,1749329441084,-154.1290114,0.00019192,2]
[364943309,1749329441098,-150.0,0.00019197,2]
[364943310,1749329441108,-151.0,0.00019198,2]
[364943311,1749329441118,-151.0,0.00019198,2]
[364943312,1749329441128,-151.0,0.00019198,2]
[364943313,1749329441138,-151.0,0.00019198,2]
[364943314,1749329441148,-1680.0,0.00019207,2]
[364943315,1749329441158,-150.0,0.00019207,2]
[364943316,1749329441167,-2000.0,0.00019244,2]
[364943317,1749329441177,-200.0,0.00019244,2]
[364943318,1749329441188,-150.0,0.00019247,2]
[364943319,1749329441198,-151.0,0.0001925,2]
[364943320,1749329441208,-151.0,0.0001925,2]
[364943321,1749329441218,-151.0,0.0001925,2]
[364943322,1749329441228,-223.510934,0.0001925,2]
[364943323,1749329441239,-151.0,0.0001925,2]
[364943324,1749329441249,-160.353024,0.0001925,2]
[364943325,1749329441259,-151.0,0.0001925,2]
[364943326,1749329441268,-151.0,0.0001925,2]
[364943327,1749329441278,-1000.0,0.0001925,2]
[364943328,1749329441288,-1586.3784,0.00019251,2]
[364943329,1749329441298,-154.1290114,0.00019262,2]
[364943330,1749329441308,-163.98967669,0.00019282,2]
[364943331,1749329441319,-500.0,0.00019282,2]
[364943332,1749329441328,-500.0,0.00019282,2]
[364943333,1749329441338,-530.12077654,0.00019282,2]
[364943334,1749329441348,-37354.143999,0.00019283,2]
[364943335,1749329441358,-54138.3966666,0.00019283,2]
[364943336,1749329441368,-2185.6680495,0.00019286,2]
[364943337,1749329441378,-151.0,0.00019288,2]
[364943338,1749329441388,-151.0,0.00019288,2]
[364943339,1749329441397,-501.2,0.00019288,2]
[364943340,1749329441408,-187.496933,0.00019288,2]
[364943341,1749329441418,-151.0,0.00019288,2]
[364943342,1749329441428,-151.0,0.00019288,2]
[364943343,1749329441438,-151.0,0.00019288,2]
[364943344,1749329441448,-175.332154,0.00019288,2]
[364943345,1749329441458,-175.332154,0.00019288,2]
[364943346,1749329441469,-151.0,0.00019288,2]
[364943347,1749329441479,-151.0,0.00019288,2]
[364943348,1749329441490,-151.0,0.00019288,2]
[364943349,1749329441500,-151.0,0.00019288,2]
[364943350,1749329441510,-151.0,0.00019288,2]
[364943351,1749329441520,-151.0,0.00019288,2]
[364943352,1749329441531,-151.0,0.00019288,2]
[364943353,1749329441541,-151.0,0.00019288,2]
[364943354,1749329441550,-459.005942,0.00019288,2]
[364943355,1749329441560,-459.005942,0.00019288,2]
[364943356,1749329441570,-151.0,0.00019288,2]
[364943357,1749329441580,-151.0,0.00019288,2]
[364943358,1749329441590,-151.0,0.00019289,2]
[364943359,1749329441600,-151.0,0.00019289,2]
[364943360,1749329441610,-155.355,0.00019289,2]
[364943361,1749329441621,-151.0,0.0001929,2]
[364943362,1749329441631,-151.0,0.0001929,2]
[364943363,1749329441641,-151.0,0.0001929,2]
[364943364,1749329441660,-151.0,0.0001929,2]
[364943365,1749329441679,-2478.01469849,0.00019296,2]
[364943366,1749329441695,-500.0,0.000193,7]
[364943367,1749329441708,-198.720131,0.00019301,2]
[364943368,1749329441723,-151.0,0.00019301,2]
[364943369,1749329441738,-151.0,0.00019301,2]
[364943370,1749329441752,-151.0,0.00019301,2]
[364943371,1749329441768,-151.0,0.00019301,2]
[364943372,1749329441783,-151.0,0.00019301,2]
[364943373,1749329441799,-151.0,0.00019301,2]
[364943374,1749329441812,-153.436081,0.00019301,2]
[364943375,1749329441825,-151.0,0.00019301,2]
[364943376,1749329441836,-151.0,0.00019301,2]
[364943377,1749329441851,-151.0,0.00019301,2]
[364943378,1749329441866,-151.0,0.00019301,2]
[364943379,1749329441880,-151.0,0.00019301,2]
[364943380,1749329441895,-187.315064,0.00019301,2]
[364943381,1749329441910,-221.765055,0.00019301,2]
[364943382,1749329441925,-221.765055,0.00019301,2]
[364943383,1749329441940,-151.0,0.00019301,2]
[364943384,1749329441955,-151.0,0.00019301,2]
[364943385,1749329441970,-150.0,0.00019305,2]
[364943386,1749329441984,-150.0,0.00019318,2]
[364943387,1749329441999,-200.0,0.00019327,6]
[364943388,1749329442012,-303.32,0.00019327,2]
[364943389,1749329442025,-150.0,0.00019332,2]
[364943390,1749329442048,-154.1290114,0.00019333,2]
[364943391,1749329442079,-151.0,0.00019337,2]
[364943392,1749329442096,-151.0,0.00019337,2]
[364943393,1749329442114,-151.0,0.00019337,2]
[364943394,1749329442129,-151.0,0.00019337,2]
[364943395,1749329442142,-151.0,0.00019337,2]
[364943396,1749329442157,-161.14916716,0.00019342,2]
[364943397,1749329442170,-150.0,0.00019348,2]
[364943398,1749329442191,-151.0,0.0001935,2]
[364943399,1749329442204,-151.0,0.0001935,2]
[364943400,1749329442216,-151.0,0.0001935,2]
[364943401,1749329442228,-151.0,0.0001935,2]
[364943402,1749329442241,-151.0,0.0001935,2]
[364943403,1749329442256,-151.0,0.0001935,2]
[364943404,1749329442278,-151.0,0.0001935,2]
[364943405,1749329442291,-151.0,0.0001935,2]
[364943406,1749329442304,-151.0,0.0001935,2]
[364943407,1749329442318,-181.489442,0.0001935,2]
[364943408,1749329442331,-151.0,0.0001935,2]
[364943409,1749329442345,-151.0,0.0001935,2]
[364943410,1749329442359,-151.0,0.0001935,2]
[364943411,1749329442373,-151.0,0.0001935,2]
[364943412,1749329442397,-151.0,0.00019351,2]
[364943413,1749329442411,-151.0,0.00019351,2]
[364943414,1749329442426,-151.0,0.00019351,2]
[364943415,1749329442448,-151.0,0.00019351,2]
[364943416,1749329442465,-151.0,0.00019351,2]
[364943417,1749329442481,-151.0,0.00019351,2]
[364943418,1749329442497,-151.0,0.00019351,2]
[364943419,1749329442512,-151.0,0.00019351,2]
[364943420,1749329442528,-151.0,0.00019351,2]
[364943421,1749329442543,-151.0,0.00019351,2]
[364943422,1749329442559,-151.0,0.00019351,2]
[364943423,1749329442574,-270.464707,0.00019351,2]
[364943424,1749329442589,-151.0,0.00019351,2]
[364943425,1749329442604,-151.0,0.00019351,2]
[364943426,1749329442619,-151.0,0.00019351,2]
[364943427,1749329442633,-151.0,0.00019351,2]
[364943428,1749329442647,-151.0,0.00019351,2]
[364943429,1749329442660,-151.0,0.00019351,2]
[364943430,1749329442675,-158.56386,0.00019351,2]
[364943431,1749329442688,-151.0,0.00019351,2]
[364943432,1749329442702,-151.0,0.00019351,2]
[364943433,1749329442716,-151.0,0.00019351,2]
[364943434,1749329442730,-221.765055,0.00019351,2]
[364943435,1749329442744,-221.765055,0.00019351,2]
[364943436,1749329442757,-151.0,0.00019351,2]
[364943437,1749329442771,-151.0,0.00019351,2]
[364943438,1749329442785,-151.0,0.00019351,2]
[364943439,1749329442799,-151.0,0.00019351,2]
[364943440,1749329442813,-151.0,0.00019351,2]
[364943441,1749329442826,-175.332154,0.00019351,2]
[364943442,1749329442839,-175.332154,0.00019351,2]
[364943443,1749329442858,-297.087931,0.00019351,2]
[364943444,1749329442873,-151.0,0.00019351,2]
[364943446,1749329442887,-151.0,0.00019351,2]
[364943448,1749329442901,-151.0,0.00019353,2]
[364943449,1749329442915,-151.0,0.00019353,2]
[364943450,1749329442930,-151.0,0.00019353,2]
[364943451,1749329442944,-542.30759301,0.00019353,2]
[364943452,1749329442957,-304.37,0.00019356,2]
[364943453,1749329442970,-2478.01469841,0.00019363,2]
[364943454,1749329442984,-151.0,0.00019368,2]
[364943455,1749329442997,-151.0,0.00019368,2]
[364943456,1749329443011,-150.0,0.00019368,2]
[364943459,1749329443024,-500.0,0.00019368,2]
[364943460,1749329443037,-150.0,0.00019368,2]
[364943461,1749329443050,-150.0,0.00019368,2]
[364943462,1749329443063,-150.0,0.00019368,2]
[364943463,1749329443077,-150.0,0.00019368,2]
[364943464,1749329443092,-150.0,0.00019368,2]
[364943465,1749329443106,-3319.0,0.0001937,2]
[364943466,1749329443119,-151.0,0.0001937,2]
[364943467,1749329443133,-500.0,0.0001937,2]
[364943468,1749329443147,-151.0,0.0001937,2]
[364943469,1749329443161,-200.0,0.00019381,2]
[364943470,1749329443174,-300.18,0.00019387,2]
[364943471,1749329443188,-303.28,0.00019387,2]
[364943472,1749329443202,-301.28,0.00019387,2]
[364943473,1749329443215,-304.77,0.00019387,2]
[364943474,1749329443229,-2185.6680495,0.00019388,2]
[364943475,1749329443244,-151.0,0.00019391,2]
[364943476,1749329443258,-151.0,0.00019391,2]
[364943477,1749329443277,-151.0,0.00019393,2]
[364943478,1749329443291,-151.0,0.00019393,2]
[364943479,1749329443306,-151.0,0.00019393,2]
[364943480,1749329443320,-151.0,0.00019393,2]
[364943481,1749329443334,-157.453017,0.00019393,2]
[364943482,1749329443348,-151.0,0.00019393,2]
[364943483,1749329443361,-151.0,0.00019393,2]
[364943484,1749329443375,-151.0,0.00019393,2]
[364943485,1749329443390,-151.0,0.00019393,2]
[364943486,1749329443403,-151.0,0.00019393,2]
[364943487,1749329443417,-151.0,0.00019393,2]
[364943488,1749329443430,-151.0,0.00019393,2]
[364943489,1749329443444,-151.0,0.00019393,2]
[364943490,1749329443457,-151.0,0.00019393,2]
[364943491,1749329443470,-151.0,0.00019393,2]
[364943492,1749329443484,-151.0,0.00019393,2]
[364943493,1749329443498,-151.0,0.00019393,2]
[364943494,1749329443512,-151.0,0.00019393,2]
[364943495,1749329443525,-151.0,0.00019393,2]
[364943496,1749329443540,-151.0,0.00019393,2]
[364943498,1749329443554,-151.0,0.00019393,2]
[364943500,1749329443566,-151.0,0.00019393,2]
[364943502,1749329443580,-273.330658,0.00019393,2]
[364943503,1749329443594,-270.808666,0.00019393,2]
[364943504,1749329443607,-151.0,0.00019393,2]
[364943505,1749329443621,-459.005942,0.00019393,2]
[364943506,1749329443636,-459.005942,0.00019393,2]
[364943507,1749329443649,-303.68,0.00019394,2]
[364943508,1749329443663,-305.45,0.00019394,2]
[364943509,1749329443688,-304.24,0.00019394,2]
[364943510,1749329443709,-302.56,0.00019394,2]
[364943511,1749329443727,-150.0,0.00019395,2]
[364943512,1749329443743,-500.0,0.00019395,2]
[364943513,1749329443760,-150.0,0.00019395,2]
[364943514,1749329443777,-150.0,0.00019395,2]
[364943515,1749329443793,-150.0,0.00019395,2]
[364943516,1749329443809,-151.0,0.00019396,2]
[364943517,1749329443823,-221.765055,0.00019396,2]
[364943518,1749329443839,-221.765055,0.00019396,2]
[364943519,1749329443853,-221.765055,0.00019396,2]
[364943520,1749329443869,-221.765055,0.00019396,2]
[364943521,1749329443884,-151.0,0.00019396,2]
[364943522,1749329443899,-151.0,0.00019396,2]
[364943523,1749329443915,-151.0,0.00019396,2]
[364943524,1749329443929,-151.0,0.00019396,2]
[364943525,1749329443941,-151.0,0.00019396,2]
[364943526,1749329443951,-151.0,0.00019396,2]
[364943527,1749329443960,-175.332154,0.00019396,2]
[364943528,1749329443969,-175.332154,0.00019396,2]
[364943529,1749329443979,-175.332154,0.00019396,2]
[364943530,1749329443989,-175.332154,0.00019396,2]
[364943531,1749329443999,-8442.04912556,0.00019396,2]
[364943532,1749329444696,-28693.02986209,0.00019396,2]
[364943533,1749329444709,-777.14701225,0.00019396,2]
[364943534,1749329444718,-151.0,0.00019396,2]
[364943535,1749329444728,-151.0,0.00019396,2]
[364943536,1749329444738,-151.0,0.00019396,2]
[364943537,1749329444748,-151.0,0.00019396,2]
[364943538,1749329444757,-151.0,0.00019396,2]
[364943539,1749329444766,-151.0,0.00019396,2]
[364943540,1749329444780,-151.0,0.00019396,2]
[364943541,1749329444789,-459.005942,0.00019396,2]
[364943542,1749329444799,-459.005942,0.00019396,2]
[364943543,1749329444808,-459.005942,0.00019396,2]
[364943544,1749329444818,-459.005942,0.00019396,2]
[364943545,1749329444828,-151.0,0.00019396,2]
[364943546,1749329444837,-151.0,0.00019399,2]
[364943547,1749329444848,-150.0,0.00019399,2]
[364943548,1749329444857,-162.947667,0.000194,2]
[364943549,1749329444867,-151.0,0.000194,2]
[364943550,1749329444876,-234.151932,0.000194,2]
[364943551,1749329444885,-151.0,0.000194,2]
[364943552,1749329444895,-1834.25398002,0.000194,2]
[364943553,1749329444907,-1231.37837027,0.000194,2]
[364943573,1749329688399,353.2,0.00013699,2]
[364943575,1749329789362,753.02,0.00016437,2]
[364943576,1749330228166,434.69,0.000169,2]
[364943581,1749330522416,150.0,0.00017057,2]
[364943598,1749330611729,200.0,0.0001608,2]
[364943599,1749330611979,200.0,0.00016893,3]
[364943602,1749330632277,-200.0,0.00017707,4]
[364943603,1749330632287,-300.0,0.00017979,2]
[364943604,1749330632298,-1200.0,0.00017979,2]
[364943605,1749330632309,-1598.78612106,0.0001798,2]
[364943606,1749330632322,-945.15641439,0.0001798,2]
[364943607,1749330632338,-1373.41249714,0.0001798,2]
[364943608,1749330632352,-277.215,0.0001798,2]
[364943609,1749330632440,-1012.0232,0.0001798,2]
[364943610,1749330632454,-11847.67033793,0.0001798,2]
[364943611,1749330632464,-175.82550319,0.0001808,2]
[364943612,1749330632476,-336.24,0.00018159,2]
[364943613,1749330632486,-2604.45,0.00018201,2]
[364943614,1749330632496,-150.0,0.00018205,7]
[364943615,1749330632505,-250.0,0.00018224,2]
[364943616,1749330632515,-1000.0,0.00018285,2]
[364943617,1749330632524,-1219.8,0.00018295,2]
[364943618,1749330632534,-619.01901218,0.00018342,2]
[364943619,1749330632543,-200.0,0.0001852,5]
[364943620,1749330632554,-163.25,0.00018578,2]
[364943621,1749330632564,-753.02,0.00018701,2]
[364943622,1749330632575,-883.0,0.00018908,2]
[364943623,1749330632585,-155.0,0.00018908,2]
[364943624,1749330632595,-4082.0,0.00018908,2]
[364943625,1749330632604,-1000.0,0.0001895,2]
[364943626,1749330632615,-207.4,0.00019051,2]
[364943627,1749330632624,-250.093122,0.00019062,2]
[364943628,1749330632634,-150.0,0.00019062,2]
[364943629,1749330632648,-150.0,0.00019063,2]
[364943630,1749330632658,-150.0,0.00019063,2]